bitfinex-derivatives/quotes_SOLF0:USTF0_20250730
["timestamp","ask_amount","ask_price","bid_price","bid_amount"]
[1753880761733,3.03,177.66,177.56,8.90002015]
[1753880761928,3.03,177.66,177.6,9.85002015]
[1753880762130,3.03,177.66,177.6,8.90002015]
[1753880762431,3.03,177.66,177.6,9.85002015]
[1753880762635,3.03,177.66,177.61,105.82]
[1753880762831,3.03,177.68,177.64,0.95]
[1753880763137,3.03,177.68,177.65,0.95]
[1753880763337,3.03,177.68,177.67,5.6285]
[1753880763729,110.48440458,177.82,177.67,106.79]
[1753880763730,3.03,177.75,177.67,106.79]
[1753880763926,8.90002015,177.82,177.7,8.90002015]
[1753880764132,3.03,177.81,177.7,9.85002015]
[1753880764335,3.03,177.81,177.73,5.6264]
[1753880764534,3.03,177.81,177.73,8.90002015]
[1753880764933,3.03,177.81,177.7,8.90002015]
[1753880765134,3.03,177.81,177.7,114.80002015]
[1753880765430,8.6543,177.81,177.71,0.95]
[1753880765628,3.03,177.8,177.73,8.90002015]
[1753880765827,3.03,177.77,177.73,8.90002015]
[1753880766432,3.03,177.75,177.7,114.80002015]
[1753880766735,3.03,177.75,177.7,8.90002015]
[1753880766938,3.03,177.81,177.7,8.90002015]
[1753880767140,3.03,177.81,177.7,9.85002015]
[1753880767335,5.626,177.75,177.7,8.90002015]
[1753880767539,3.03,177.74,177.7,8.90002015]
[1753880767739,3.03,177.74,177.69,105.9]
[1753880768033,3.03,177.75,177.69,105.9]
[1753880770135,8.90002015,177.79,177.69,105.9]
[1753880770136,3.03,177.73,177.69,111.5277]
[1753880770339,3.03,177.78,177.69,105.9]
[1753880770539,3.03,177.78,177.7,8.90002015]
[1753880770739,3.03,177.76,177.7,8.90002015]
[1753880771136,3.03,177.76,177.73,5.6263]
[1753880771444,3.03,177.74,177.7,9.85002015]
[1753880771838,3.03,177.74,177.72,5.6266]
[1753880772038,8.90002015,177.82,177.7,9.85002015]
[1753880772039,3.03,177.81,177.71,0.95]
[1753880772240,5.6248,177.79,177.74,5.6263]
[1753880772447,3.03,177.78,177.74,5.6263]
[1753880772644,3.03,177.78,177.71,0.95]
[1753880773334,3.03,177.78,177.74,0.95]
[1753880773536,3.03,177.84,177.74,0.95]
[1753880774540,5.6243,177.81,177.76,5.6256]
[1753880774846,5.6243,177.81,177.74,0.95]
[1753880774847,3.03,177.8,177.74,0.95]
[1753880775049,5.6246,177.8,177.75,5.6257]
[1753880775250,3.03,177.77,177.75,5.6257]
[1753880775546,3.03,177.77,177.73,9.85002015]
[1753880775747,8.90002015,177.85,177.73,9.85002015]
[1753880775748,5.6242,177.81,177.74,0.95]
[1753880775949,3.03,177.8,177.74,0.95]
[1753880776142,5.6247,177.79,177.73,14.52662015]
[1753880776448,3.03,177.8,177.71,106.67]
[1753880776639,3.03,177.8,177.71,0.95]
[1753880776839,3.03,177.75,177.71,0.95]
[1753880777043,3.03,177.75,177.72,0.95]
[1753880777241,5.6257,177.76,177.7,120.24732015]
[1753880777440,3.03,177.84,177.7,115.57002015]
[1753880778050,5.625,177.78,177.73,5.6265]
[1753880778253,3.03,177.77,177.71,0.95]
[1753880779246,3.03,177.77,177.74,5.626]
[1753880779653,3.03,177.79,177.74,0.95]
[1753880779848,3.03,177.79,177.76,8.90002015]
[1753880780049,3.03,177.79,177.76,9.85002015]
[1753880780247,3.03,177.79,177.78,5.625]
[1753880780553,3.03,177.87,177.77,0.95]
[1753880780753,5.6233,177.84,177.79,5.6246]
[1753880780952,3.03,177.89,177.79,5.6246]
[1753880781148,3.03,177.89,177.77,0.95]
[1753880781948,3.03,177.9,177.77,0.95]
[1753880782148,3.03,177.87,177.76,114.54002015]
[1753880782344,8.90002015,177.85,177.75,5.6258]
[1753880782548,3.03,177.81,177.7,9.85002015]
[1753880782948,3.03,177.81,177.73,5.6264]
[1753880783351,3.03,177.78,177.68,105.66]
[1753880783650,3.03,177.75,177.68,105.66]
[1753880784253,5.6261,177.75,177.72,5.6268]
[1753880784558,3.03,177.74,177.68,106.61]
[1753880784749,3.03,177.78,177.71,0.95]
[1753880784951,3.03,177.78,177.74,0.95]
[1753880785150,3.03,177.78,177.75,0.95]
[1753880785351,3.03,177.79,177.78,5.625]
[1753880785551,8.90002015,177.86,177.76,9.85002015]
[1753880785851,3.03,177.83,177.79,0.95]
[1753880786051,3.03,177.82,177.79,0.95]
[1753880786452,3.03,177.82,177.8,5.6244]
[1753880786755,8.90002015,177.89,177.8,5.6244]
[1753880786954,346.68,177.96,177.84,8.90002015]
[1753880787150,3.26762651,177.95,177.89,0.94]
[1753880787350,3.08,177.96,177.89,0.94]
[1753880787550,5.6204,177.93,177.86,0.94]
[1753880787754,3.08,177.92,177.86,0.94]
[1753880788159,3.08,177.97,177.87,8.90002015]
[1753880788367,3.08,177.97,177.88,0.94]
[1753880789152,3.08,177.97,177.94,5.6199]
[1753880789353,346.64,178.08,177.84,8.90002015]
[1753880789354,16.87,178.11,177.85,0.94]
[1753880789657,16.8357,178.2,177.98,0.94]
[1753880789658,3.08,178.05,177.98,0.94]
[1753880790056,3.08,178.05,177.96,8.90002015]
[1753880790253,3.08,178.05,177.95,0.94]
[1753880790451,3.08,178.05,177.99,8.90002015]
[1753880790658,106.42,178.16,177.95,0.94]
[1753880790659,8.90002015,178.15,177.95,0.94]
[1753880790958,3.08,178.13,178.02,0.94]
[1753880791350,8.90002015,178.08,177.92,346.56]
[1753880791561,3.08,178.07,177.95,8.90002015]
[1753880791763,3.08,178.03,177.93,0.94]
[1753880792056,3.08,178.03,177.98,8.90002015]
[1753880792255,346.56,178.17,178.01,5.6176]
[1753880792256,5.6163,178.06,178.01,5.6176]
[1753880792461,3.08,178.05,177.99,0.94]
[1753880792965,3.08,178.09,178.02,0.94]
[1753880793559,11.98002015,178.09,177.99,0.94]
[1753880793759,3.08,178.08,177.99,0.94]
[1753880793954,3.08,178.06,177.96,8.90002015]
[1753880794161,3.08,178.05,177.96,0.94]
[1753880794363,3.08,178.05,177.96,8.90002015]
[1753880794553,3.08,178.11,178.0,0.94]
[1753880794754,3.08,178.11,178.03,0.94]
[1753880795063,8.90002015,178.2,178.1,0.94]
[1753880795266,3.08,178.19,178.1,0.94]
[1753880795453,3.08,178.19,178.08,8.90002015]
[1753880795661,3.08,178.16,178.05,106.54]
[1753880795858,3.08,178.16,178.05,8.90002015]
[1753880796155,3.08,178.16,178.03,0.94]
[1753880796156,3.08,178.16,178.08,8.90002015]
[1753880796353,3.08,178.16,178.09,0.94]
[1753880796559,3.08,178.19,178.12,0.94]
[1753880796754,3.08,178.19,178.14,8.90002015]
[1753880796956,3.08,178.18,178.14,8.90002015]
[1753880797157,3.08,178.16,178.12,0.94]
[1753880797363,3.08,178.23,178.12,0.94]
[1753880797662,3.08,178.23,178.11,8.90002015]
[1753880797865,3.08,178.23,178.12,5.39104297]
[1753880798067,3.08,178.16,178.13,5.39104297]
[1753880798264,3.08,178.18,178.14,5.39104297]
[1753880798461,3.08,178.24,178.16,0.94]
[1753880798660,3.08,178.24,178.17,5.39104297]
[1753880798855,3.08,178.23,178.18,5.39104297]
[1753880799072,8.6917,178.2,178.19,5.39104297]
[1753880799267,8.90002015,178.22,178.11,0.94]
[1753880799464,3.08,178.19,178.12,5.38886141]
[1753880799765,5.6139,178.13,178.07,9.84002015]
[1753880799959,3.08,178.11,178.08,5.38834347]
[1753880800159,3.08,178.18,178.09,6.32834347]
[1753880800459,3.08,178.18,178.1,5.38834347]
[1753880800667,8.90002015,178.16,178.11,5.38834347]
[1753880800863,3.08,178.15,178.04,3.07]
[1753880801066,5.6149,178.1,178.05,5.6162]
[1753880801271,3.08,178.09,178.06,349.41]
[1753880801561,3.08,178.12,178.03,3.07]
[1753880801764,3.08,178.09,178.03,8.6868]
[1753880802157,8.90002015,178.13,178.01,106.88]
[1753880802364,3.08,178.07,178.04,3.07]
[1753880802565,3.08,178.12,178.02,3.07]
[1753880802764,8.90002015,178.15,178.03,11.97002015]
[1753880802969,3.08,178.14,178.04,3.07]
[1753880803363,3.08,178.17,178.07,3.07]
[1753880803663,3.08,178.17,178.01,106.88]
[1753880803664,3.08,178.17,178.1,3.07]
[1753880804071,3.08,178.24,178.1,3.07]
[1753880804267,3.08,178.22,178.1,3.07]
[1753880804472,3.08,178.19,178.1,3.07]
[1753880805671,5.6124,178.18,178.12,3.07]
[1753880806065,3.08,178.19,178.12,3.07]
[1753880806662,3.08,178.22,178.16,3.07]
[1753880807773,8.90002015,178.28,178.16,3.07]
[1753880807980,3.08,178.27,178.19,3.07]
[1753880808174,5.6107,178.24,178.19,3.07]
[1753880808372,3.08,178.27,178.17,3.07]
[1753880808774,5.6114,178.22,178.16,5.6129]
[1753880808975,3.08,178.23,178.17,3.07]
[1753880809272,3.08,178.23,178.19,5.6118]
[1753880809473,3.08,178.27,178.21,3.07]
[1753880809678,3.08,178.32,178.21,3.07]
[1753880809980,3.08,178.31,178.22,3.07]
[1753880810981,8.90002015,178.32,178.18,8.90002015]
[1753880811182,3.08,178.28,178.18,11.97002015]
[1753880811383,3.08,178.28,178.19,3.07]
[1753880812286,3.08,178.28,178.22,3.07]
[1753880812984,3.08,178.28,178.23,5.29248231]
[1753880813280,8.689,178.29,178.26,3.07]
[1753880813586,8.689,178.29,178.27,5.29248231]
[1753880813784,8.689,178.29,178.28,5.29248231]
[1753880814686,3.08,178.35,178.28,8.36248231]
[1753880814889,3.08,178.35,178.29,5.29248231]
[1753880815092,358.833599,178.37,178.3,5.29248231]
[1753880815093,3.08,178.32,178.3,5.29248231]
[1753880815284,3.08,178.32,178.31,5.29248231]
[1753880815987,3.08,178.36,178.31,5.29248231]
[1753880816188,3.08,178.36,178.32,5.29248231]
[1753880816385,5.6073,178.34,178.33,5.29248231]
[1753880816589,8.6873,178.34,178.33,5.29248231]
[1753880817792,5.6073,178.34,178.33,8.30248231]
[1753880817992,8.8373,178.34,178.33,5.29248231]
[1753880820789,8.8373,178.34,178.24,8.90002015]
[1753880820790,3.23,178.27,178.23,3.01]
[1753880820988,3.23,178.27,178.24,3.01]
[1753880821184,5.611,178.23,178.2,7.17373546]
[1753880821390,3.23,178.28,178.13,4.53264324]
[1753880821594,11.2154,178.33,178.15,3.01]
[1753880821595,8.90002015,178.23,178.15,3.01]
[1753880821795,5.613,178.16,178.15,3.01]
[1753880821996,8.90002015,178.32,178.08,13.43266339]
[1753880821997,8.90002015,178.2,178.12,3.01]
[1753880822191,3.23,178.19,178.12,3.01]
[1753880822497,3.23,178.17,178.13,3.01]
[1753880822692,3.23,178.16,178.1,4.17948341]
[1753880822898,5.6135,178.15,178.14,3.01]
[1753880823098,11.2185,178.28,178.08,8.90002015]
[1753880823397,3.23,178.21,178.12,3.01]
[1753880823999,8.90002015,178.19,178.12,3.01]
[1753880824194,3.23,178.18,178.12,3.01]
[1753880825196,5.6136,178.14,178.13,3.01]
[1753880825494,3.23,178.18,178.13,4.19509122]
[1753880825698,3.23,178.15,178.08,3.01]
[1753880825897,3.23,178.18,178.1,4.19620224]
[1753880826098,3.23,178.18,178.11,4.19620224]
[1753880826299,8.90002015,178.19,178.1,3.01]
[1753880826497,3.23,178.15,178.05,111.31264324]
[1753880826706,11.2219,178.23,178.06,4.20321384]
[1753880826707,5.6158,178.08,178.06,4.20321384]
[1753880826898,3.23,178.12,178.07,4.20321384]
[1753880827199,3.23,178.12,178.08,4.20321384]
[1753880827398,3.23,178.1,178.03,3.01]
[1753880827600,3.23,178.09,178.04,4.21132538]
[1753880827900,5.1084512,178.1,178.05,4.21132538]
[1753880828101,5.1084512,178.1,178.06,4.21132538]
[1753880828295,5.6169,178.04,178.02,3.01]
[1753880828502,5.6169,178.04,178.03,4.21961089]
[1753880828700,5.1084512,178.1,178.03,4.21961089]
[1753880828900,5.1084512,178.1,178.04,4.21961089]
[1753880829099,5.1084512,178.1,178.02,3.01]
[1753880829297,11.2253,178.18,178.03,4.22069793]
[1753880829298,8.90002015,178.07,178.03,4.22069793]
[1753880829500,8.90002015,178.07,178.04,4.22931767]
[1753880829704,8.90002015,178.07,178.05,4.22887436]
[1753880829999,3.23,178.06,178.0,3.01]
[1753880830201,3.23,178.06,178.03,3.01]
[1753880830500,5.6166,178.05,178.04,4.22978793]
[1753880830905,3.23,178.06,178.04,4.22978793]
[1753880831202,8.8462,178.06,178.05,4.22978793]
[1753880831702,8.90002015,178.12,178.05,4.22978793]
[1753880831999,8.90002015,178.12,178.06,4.22978793]
[1753880832199,5.6153,178.09,178.08,3.01]
[1753880832407,5.6153,178.09,178.08,4.22978793]
[1753880832599,8.8453,178.09,178.08,4.22978793]
[1753880832999,8.8453,178.09,178.05,3.01]
[1753880833000,5.6168,178.04,178.03,4.53264324]
[1753880833202,3.23,178.05,178.01,7.54264324]
[1753880833503,8.8471,178.03,178.01,4.53264324]
[1753880833699,3.23,178.05,178.01,3.01]
[1753880833898,3.23,178.04,178.01,3.01]
[1753880834399,3.23,178.02,177.97,3.01]
[1753880834604,3.23,178.01,177.96,4.53264324]
[1753880834905,8.848,178.01,177.98,3.01]
[1753880835097,3.23,178.02,177.97,4.53264324]
[1753880835298,3.23,178.02,177.96,4.53264324]
[1753880835604,8.90002015,178.0,177.94,4.53264324]
[1753880835803,3.23,177.99,177.93,4.53264324]
[1753880835994,12.13002015,178.0,177.94,3.01]
[1753880836199,12.13002015,178.0,177.95,4.53264324]
[1753880836394,3.23,177.99,177.96,3.01]
[1753880836601,5.619,177.97,177.96,3.01]
[1753880837303,3.23,177.94,177.91,4.53264324]
[1753880837601,3.23,177.99,177.91,7.54264324]
[1753880837904,8.90002015,178.0,177.92,4.53264324]
[1753880837905,5.6202,177.94,177.92,4.53264324]
[1753880838101,5.6202,177.94,177.93,3.01]
[1753880838299,3.23,177.97,177.94,3.01]
[1753880838807,5.6193,177.96,177.94,3.01]
[1753880839102,3.23,177.97,177.94,3.01]
[1753880839302,3.23,177.96,177.91,4.53264324]
[1753880839605,5.6201,177.94,177.93,3.01]
[1753880839997,3.23,177.99,177.91,7.54264324]
[1753880840204,3.23,177.99,177.91,7.64361622]
[1753880840400,3.23,177.95,177.91,3.01]
[1753880840599,3.23,177.95,177.9,4.63361622]
[1753880840902,3.23,177.95,177.92,3.01]
[1753880841199,5.6197,177.95,177.9,4.63361622]
[1753880841408,5.84070826,177.97,177.91,3.01]
[1753880842605,5.84070826,177.97,177.92,3.01]
[1753880842808,3.23,177.96,177.93,3.01]
[1753880843108,5.6198,177.95,177.9,3.01]
[1753880843506,3.23,177.96,177.9,3.01]
[1753880843709,3.23,177.94,177.9,3.01]
[1753880844006,3.23,177.94,177.91,3.01]
[1753880844201,3.23,177.92,177.89,3.01]
[1753880844406,3.23,177.92,177.86,7.64361622]
[1753880844703,3.23,177.95,177.86,8.85070826]
[1753880844905,5.84070826,177.97,177.88,5.6218]
[1753880845103,5.84070826,177.97,177.89,3.01]
[1753880845504,3.23,177.98,177.89,3.01]
[1753880845710,5.6189,177.98,177.91,3.01]
[1753880846007,5.84070826,177.98,177.91,3.01]
[1753880846205,3.23,177.97,177.91,3.01]
[1753880846401,5.84070826,177.96,177.91,3.01]
[1753880846606,5.84070826,177.92,177.83,3.01]
[1753880846810,5.6213,177.9,177.83,3.01]
[1753880847004,5.6213,177.9,177.85,3.04]
[1753880847204,5.6208,177.92,177.85,3.04]
[1753880847903,5.6211,177.91,177.87,3.04]
[1753880848205,3.01,177.91,177.87,3.04]
[1753880848411,5.6217,177.89,177.87,3.04]
[1753880848613,8.85070826,177.9,177.83,3.04]
[1753880849106,3.01,177.87,177.78,3.04]
[1753880849607,3.01,177.87,177.81,3.04]
[1753880849803,5.84070826,177.88,177.81,3.04]
[1753880850209,5.84070826,177.98,177.79,3.04]
[1753880850412,5.84070826,177.84,177.79,3.04]
[1753880850812,8.85070826,177.82,177.76,3.04]
[1753880852307,5.6246,177.8,177.76,3.04]
[1753880852510,8.85070826,177.82,177.76,3.04]
[1753880852914,5.6239,177.82,177.78,3.04]
[1753880853104,5.6239,177.82,177.77,5.6252]
[1753880853304,5.84070826,177.84,177.75,3.04]
[1753880853508,3.01,177.8,177.73,3.04]
[1753880853909,3.01,177.8,177.75,5.6259]
[1753880853910,8.6345,177.8,177.75,5.6259]
[1753880854209,3.01,177.8,177.77,3.04]
[1753880854617,8.85070826,177.8,177.74,3.04]
[1753880855907,5.6257,177.76,177.72,107.12]
[1753880856103,8.85070826,177.81,177.73,3.04]
[1753880856310,11.46460826,177.82,177.77,5.6251]
[1753880856510,5.6239,177.82,177.79,3.04]
[1753880856812,5.6235,177.83,177.81,3.04]
[1753880857011,5.84070826,177.86,177.76,5.84070826]
[1753880857213,8.85070826,177.86,177.83,3.04]
[1753880857412,5.6228,177.85,177.83,3.04]
[1753880857609,5.84070826,177.88,177.81,3.04]
[1753880857814,3.01,177.9,177.81,3.04]
[1753880858014,5.622,177.88,177.81,3.04]
[1753880858317,5.622,177.88,177.83,3.04]
[1753880858519,3.01,177.93,177.84,5.84070826]
[1753880858717,349.29,177.95,177.86,5.84070826]
[1753880858915,349.29,177.95,177.87,3.04]
[1753880859216,3.01,177.95,177.88,3.04]
[1753880859518,4.26332198,177.94,177.88,3.04]
[1753880859712,3.01,177.95,177.87,3.04]
[1753880859913,3.01,177.95,177.87,8.6619]
[1753880860109,3.01,177.98,177.88,5.84070826]
[1753880860410,5.84070826,178.0,177.91,3.04]
[1753880860609,5.6188,177.98,177.93,3.04]
[1753880860810,3.01,178.02,177.93,3.04]
[1753880861011,3.01,178.01,177.96,3.04]
[1753880861209,3.01,178.01,177.98,3.04]
[1753880861515,3.01,178.04,177.96,5.84070826]
[1753880861717,5.6172,178.03,177.98,3.04]
[1753880861918,3.01,178.06,177.98,3.04]
[1753880862121,3.01,178.04,177.98,3.04]
[1753880862616,3.01,178.03,177.98,3.04]
[1753880862813,8.866552,178.06,177.98,3.04]
[1753880863013,4.27003038,178.05,177.98,3.04]
[1753880863214,5.6184,177.99,177.98,3.04]
[1753880863415,3.01,178.01,177.95,3.04]
[1753880863917,5.6193,177.96,177.95,3.04]
[1753880864621,5.6204,177.93,177.92,3.04]
[1753880865025,3.01,177.96,177.89,3.04]
[1753880865222,4.28196644,177.95,177.89,3.04]
[1753880865524,3.01,177.96,177.9,3.04]
[1753880865726,4.28757528,177.95,177.9,3.04]
[1753880865923,3.01,177.99,177.9,11.906552]
[1753880866116,4.28773327,177.98,177.93,5.6202]
[1753880866312,4.29332989,177.97,177.91,3.04]
[1753880866520,3.01,177.98,177.91,3.04]
[1753880866818,4.29338822,177.97,177.91,3.04]
[1753880867019,5.6198,177.95,177.91,5.6208]
[1753880867218,5.6198,177.95,177.92,3.04]
[1753880867523,5.6196,177.95,177.94,3.04]
[1753880867720,4.29865478,177.95,177.94,3.04]
[1753880868018,7.30865478,177.95,177.88,3.04]
[1753880868221,7.30865478,177.94,177.85,3.04]
[1753880868537,7.30865478,177.93,177.85,3.04]
[1753880868825,4.29865478,177.92,177.85,3.04]
[1753880869427,3.01,177.93,177.86,3.04]
[1753880869623,4.29735899,177.92,177.86,3.04]
[1753880869823,5.621,177.91,177.86,8.6622]
[1753880870026,5.621,177.91,177.88,3.04]
[1753880870226,4.2981115,177.9,177.85,3.04]
[1753880870422,4.2981115,177.89,177.85,3.04]
[1753880870728,3.01,177.93,177.84,8.866552]
[1753880870921,3.01,177.91,177.85,3.04]
[1753880871225,4.30255634,177.9,177.85,3.04]
[1753880871428,9.92425634,177.89,177.85,8.6626]
[1753880871627,4.30255634,177.88,177.87,3.04]
[1753880872325,4.30255634,177.89,177.88,3.04]
[1753880872525,4.30881798,177.89,177.88,3.04]
[1753880873628,9.93061798,177.89,177.82,111.65361622]
[1753880873828,3.01,177.91,177.83,3.04]
[1753880873829,4.30881798,177.88,177.83,3.04]
[1753880874127,9.93101798,177.87,177.84,3.04]
[1753880874329,8.866552,177.92,177.85,3.04]
[1753880874525,4.20518673,177.91,177.86,3.04]
[1753880874829,3.01,177.86,177.83,3.04]
[1753880875023,3.01,177.89,177.83,3.04]
[1753880875223,8.866552,177.92,177.78,4.63361622]
[1753880875224,7.21554811,177.88,177.78,4.63361622]
[1753880875530,4.20554811,177.87,177.79,3.04]
[1753880875826,9.82814811,177.86,177.81,5.624]
[1753880876024,4.20554811,177.85,177.78,4.63361622]
[1753880876231,3.01,177.87,177.84,3.04]
[1753880876424,9.94068139,177.86,177.84,3.04]
[1753880876626,4.31798139,177.85,177.84,3.04]
[1753880877132,3.01,177.87,177.84,3.04]
[1753880877327,4.20873086,177.86,177.81,3.0]
[1753880877527,5.6223,177.87,177.83,5.6233]
[1753880877829,5.6223,177.87,177.85,3.0]
[1753880878427,5.6225,177.86,177.85,3.0]
[1753880878727,3.19,177.91,177.85,3.0]
[1753880878919,3.19,177.89,177.86,3.0]
[1753880879124,4.2107713,177.88,177.87,3.0]
[1753880879326,3.19,177.9,177.87,3.0]
[1753880879526,3.19,177.93,177.83,3.0]
[1753880879734,4.21129951,177.92,177.83,3.0]
[1753880879923,4.21129951,177.91,177.84,3.0]
[1753880880127,4.21129951,177.9,177.84,3.0]
[1753880880428,8.866552,178.01,177.87,3.0]
[1753880880629,4.21308834,177.99,177.9,3.0]
[1753880880925,5.6196,177.96,177.93,3.0]
[1753880881129,3.19,177.99,177.95,3.0]
[1753880881337,8.866552,178.04,177.95,3.0]
[1753880881534,3.19,178.0,177.92,3.0]
[1753880881836,3.19,177.94,177.86,7.69530423]
[1753880882031,3.19,177.94,177.86,4.69530423]
[1753880882225,3.19,177.92,177.85,3.0]
[1753880882425,3.19,177.95,177.85,3.0]
[1753880882725,5.84401489,177.91,177.85,3.0]
[1753880882934,3.19,177.9,177.85,3.0]
[1753880883230,9.03401489,177.91,177.85,3.0]
[1753880883635,9.03401489,177.91,177.81,5.84401489]
[1753880883636,5.6228,177.85,177.81,10.53931912]
[1753880883831,3.19,177.9,177.82,3.0]
[1753880884226,5.6225,177.86,177.82,3.0]
[1753880884430,5.6225,177.86,177.81,10.53931912]
[1753880884633,5.6225,177.86,177.84,3.0]
[1753880884827,5.6222,177.87,177.83,5.6232]
[1753880885030,5.6222,177.87,177.85,3.0]
[1753880885426,5.6219,177.88,177.82,3.0]
[1753880885635,3.19,177.94,177.82,8.88010469]
[1753880885831,3.19,177.94,177.83,3.0]
[1753880886428,5.6216,177.89,177.87,3.0]
[1753880886632,8.88010469,177.92,177.83,3.0]
[1753880886834,3.19,177.91,177.83,3.0]
[1753880887039,5.6224,177.87,177.84,3.0]
[1753880887237,3.19,177.89,177.85,3.0]
[1753880887433,5.6225,177.86,177.85,3.0]
[1753880890536,5.6222,177.87,177.85,3.0]
[1753880890736,3.19,177.88,177.85,3.0]
[1753880890936,8.88010469,177.92,177.85,3.0]
[1753880891142,8.88010469,177.89,177.81,3.0]
[1753880891339,3.19,177.88,177.81,3.0]
[1753880891642,8.88010469,177.89,177.78,4.69530423]
[1753880891844,3.19,177.88,177.79,3.0]
[1753880892942,5.6244,177.81,177.8,3.0]
[1753880893144,3.19,177.84,177.78,3.0]
[1753880893437,8.88010469,177.89,177.78,3.0]
[1753880893438,3.19,177.86,177.78,3.0]
[1753880893645,8.88010469,177.89,177.78,3.0]
[1753880893646,3.19,177.88,177.78,3.0]
[1753880893844,3.19,177.88,177.78,13.57540892]
[1753880894145,3.19,177.88,177.82,3.0]
[1753880894648,8.88010469,177.92,177.81,8.88010469]
[1753880894843,4.46863223,177.91,177.82,3.0]
[1753880895049,5.6227,177.86,177.82,8.6235]
[1753880895346,3.19,177.9,177.83,3.0]
[1753880895540,5.6225,177.86,177.83,8.6232]
[1753880895741,3.19,177.9,177.82,8.88010469]
[1753880895942,8.88010469,177.93,177.83,3.0]
[1753880896140,3.19,177.92,177.83,3.0]
[1753880896738,3.19,177.92,177.86,3.0]
[1753880896940,5.6207,177.92,177.86,3.0]
[1753880897142,3.19,177.93,177.86,3.0]
[1753880897740,3.19,177.92,177.83,7.69530423]
[1753880897947,5.6225,177.86,177.82,3.0]
[1753880898147,5.6225,177.86,177.83,3.0]
[1753880898350,5.6225,177.86,177.82,3.0]
[1753880898548,5.6225,177.86,177.83,5.6232]
[1753880898848,5.6225,177.86,177.79,15.09602535]
[1753880898849,5.6225,177.86,177.84,3.0]
[1753880899151,5.6223,177.87,177.83,3.0]
[1753880899350,3.19,177.88,177.83,3.0]
[1753880899553,3.19,177.92,177.81,7.69530423]
[1753880899851,20.12090469,177.93,177.81,3.0]
[1753880899852,3.19,177.89,177.81,3.0]
[1753880900448,3.19,177.89,177.81,4.70743263]
[1753880900647,3.19,177.89,177.82,8.88010469]
[1753880900848,5.6223,177.87,177.83,8.6232]
[1753880901044,5.6223,177.87,177.83,5.6232]
[1753880901248,3.19,177.92,177.83,3.0]
[1753880902647,3.19,177.92,177.85,3.0]
[1753880903156,5.6215,177.9,177.86,5.6223]
[1753880903456,3.19,177.96,177.87,3.0]
[1753880903650,5.6206,177.92,177.88,5.6218]
[1753880903852,11.2378,177.98,177.86,4.70743263]
[1753880904055,3.19,177.96,177.87,3.0]
[1753880904255,5.6214,177.9,177.86,4.70743263]
[1753880904460,5.6214,177.9,177.86,3.0]
[1753880904658,3.19,177.93,177.86,3.0]
[1753880904956,3.19,177.96,177.89,3.0]